fUST/lending_fUST_20240928
["ID","MTS","AMOUNT","RATE_DAILY","PERIOD"]
[339380433,1727521849429,-351.730114,0.0005038,120]
[339380434,1727521849439,-1108.192677,0.0005038,120]
[339380435,1727521849450,-1108.192677,0.0005038,120]
[339380436,1727521849460,-151.0,0.0005038,120]
[339380437,1727521849469,-224.590732,0.0005038,120]
[339380438,1727521849479,-151.0,0.0005038,120]
[339380439,1727521849489,-151.0,0.0005038,120]
[339380440,1727521849500,-151.0,0.0005038,120]
[339380441,1727521849510,-151.0,0.0005038,120]
[339380442,1727521849520,-151.0,0.0005038,120]
[339380443,1727521849530,-151.0,0.0005038,120]
[339380444,1727521849539,-88888.0,0.0005038,120]
[339380445,1727521849550,-150.112233,0.000504,13]
[339380446,1727521849559,-5000.0,0.00050416,120]
[339380447,1727521849569,-1820.01868985,0.0005047,7]
[339380448,1727521849579,-3640.0373797,0.0005047,7]
[339380449,1727521849589,-151.0,0.0005048,120]
[339380450,1727521849598,-151.0,0.0005048,120]
[339380451,1727521849608,-1725.096911,0.0005048,14]
[339380452,1727521849618,-1725.096911,0.0005048,14]
[339380453,1727521849628,-151.0,0.0005048,120]
[339380454,1727521849638,-151.0,0.0005048,120]
[339380455,1727521849648,-151.0,0.0005048,120]
[339380456,1727521849658,-151.0,0.0005048,120]
[339380457,1727521849668,-151.0,0.0005048,120]
[339380458,1727521849678,-151.0,0.0005048,120]
[339380459,1727521849688,-151.0,0.0005048,120]
[339380460,1727521849697,-179.929659,0.0005048,120]
[339380461,1727521849707,-151.0,0.0005048,7]
[339380462,1727521849716,-151.0,0.0005048,7]
[339380463,1727521849725,-151.0,0.0005048,7]
[339380464,1727521849735,-151.0,0.0005048,7]
[339380465,1727521849744,-206.556517,0.0005048,120]
[339380466,1727521849753,-206.556514,0.0005048,120]
[339380467,1727521849763,-161.211059,0.0005048,120]
[339380468,1727521849777,-161.211051,0.0005048,120]
[339380469,1727521849787,-239.24714,0.0005048,120]
[339380470,1727521849796,-239.247147,0.0005048,120]
[339380471,1727521849806,-351.730114,0.0005048,120]
[339380472,1727521849816,-351.730114,0.0005048,120]
[339380473,1727521849826,-1108.192677,0.0005048,120]
[339380474,1727521849836,-1108.192676,0.0005048,120]
[339380475,1727521849846,-151.0,0.0005049,120]
[339380476,1727521849855,-151.0,0.0005049,120]
[339380477,1727521849865,-151.0,0.0005049,120]
[339380478,1727521849875,-151.0,0.0005049,120]
[339380479,1727521849885,-500.0,0.000505,120]
[339380480,1727521849898,-151.0,0.000505,120]
[339380481,1727521849909,-1820.01868985,0.00050581,7]
[339380482,1727521849918,-151.0,0.00050591,120]
[339380483,1727521849929,-150.112233,0.000506,12]
[339380484,1727521849939,-6250.0,0.0005069,120]
[339380485,1727521849950,-151.0,0.0005069,120]
[339380486,1727521849961,-151.0,0.0005069,120]
[339380487,1727521849971,-151.0,0.0005069,120]
[339380488,1727521849981,-159.54,0.000507,48]
[339380489,1727521849991,-159.54,0.000507,48]
[339380490,1727521850076,-159.54,0.000507,48]
[339380491,1727521850087,-159.54,0.000507,48]
[339380492,1727521850098,-159.54,0.000507,48]
[339380493,1727521850109,-159.54,0.000507,48]
[339380494,1727521850119,-159.54,0.000507,48]
[339380495,1727521850130,-159.54,0.000507,48]
[339380496,1727521850140,-151.0,0.000507,120]
[339380497,1727521850152,-151.0,0.000507,120]
[339380498,1727521850162,-151.0,0.000507,7]
[339380499,1727521850171,-230.426945,0.000507,7]
[339380500,1727521850181,-151.0,0.00050747,120]
[339380501,1727521850192,-600.76193149,0.00050755,14]
[339380502,1727521850201,-1820.01868985,0.00050879,7]
[339380503,1727521850212,-42341.84548466,0.00050889,120]
[339380504,1727521850222,-151.0,0.00050889,120]
[339380505,1727521850232,-151.0,0.00050889,120]
[339380506,1727521850242,-250.113042,0.00050889,120]
[339380507,1727521850252,-151.0,0.00050889,120]
[339380508,1727521850262,-1000.0,0.00050894,14]
[339380509,1727521850272,-150.112233,0.000509,10]
[339380510,1727521850283,-151.0,0.000509,120]
[339380511,1727521850294,-1725.096911,0.000509,14]
[339380512,1727521850305,-1725.096911,0.000509,14]
[339380513,1727521850317,-151.0,0.000509,120]
[339380514,1727521850327,-151.0,0.000509,120]
[339380515,1727521850336,-1232.31004774,0.00050909,120]
[339380516,1727521850345,-2000.0,0.0005091,30]
[339380517,1727521850356,-7500.0,0.00050964,120]
[339380518,1727521850367,-1820.01868985,0.00050979,7]
[339380519,1727521850379,-151.0,0.00050979,120]
[339380520,1727521850388,-151.0,0.00050979,120]
[339380521,1727521850399,-152.675268,0.00050989,120]
[339380522,1727521850410,-151.0,0.00050989,120]
[339380523,1727521850419,-152.425406,0.00050989,120]
[339380524,1727521850429,-151.0,0.00050999,120]
[339380525,1727521850439,-151.0,0.00050999,120]
[339380526,1727521850449,-1725.096911,0.00050999,14]
[339380527,1727521850458,-1725.096911,0.00050999,14]
[339380528,1727521850469,-151.0,0.00050999,120]
[339380529,1727521850479,-151.0,0.00050999,120]
[339380530,1727521850488,-151.0,0.00050999,120]
[339380531,1727521850499,-232.209688,0.00050999,120]
[339380532,1727521850509,-151.0,0.00050999,7]
[339380533,1727521850520,-2000.0,0.00051,51]
[339380534,1727521850530,-3630.28,0.00051,30]
[339380535,1727521850539,-3000.0,0.00051,85]
[339380536,1727521850549,-151.0,0.00051,120]
[339380537,1727521850559,-3000.0,0.0005101,85]
[339380538,1727521850569,-3000.0,0.0005102,85]
[339380539,1727521850581,-152.408077,0.00051021,120]
[339380540,1727521850590,-151.0,0.00051021,120]
[339380541,1727521850602,-151.0,0.00051021,120]
[339380542,1727521850612,-233.632698,0.0005103,120]
[339380543,1727521850621,-1725.096911,0.0005103,14]
[339380544,1727521850630,-1725.096911,0.0005103,14]
[339380545,1727521850641,-3000.0,0.0005103,85]
[339380546,1727521850652,-151.0,0.0005103,120]
[339380547,1727521850661,-151.0,0.0005103,7]
[339380548,1727521850672,-151.0,0.0005103,120]
[339380549,1727521850681,-151.0,0.0005103,120]
[339380550,1727521850690,-3000.0,0.0005104,85]
[339380551,1727521850700,-3000.0,0.0005105,85]
[339380552,1727521850710,-3000.0,0.0005106,85]
[339380553,1727521850719,-3000.0,0.0005107,85]
[339380554,1727521850729,-151.0,0.0005107,120]
[339380555,1727521850738,-251.160718,0.0005107,120]
[339380556,1727521850748,-151.0,0.0005107,120]
[339380557,1727521850757,-5305.595948,0.0005108,85]
[339380558,1727521850769,-151.0,0.0005108,120]
[339380559,1727521850778,-151.0,0.0005108,7]
[339380560,1727521850788,-999.0,0.00051085,120]
[339380561,1727521850798,-150.112233,0.000511,13]
[339380562,1727521850808,-8750.0,0.00051238,120]
[339380563,1727521850823,-151.0,0.00051238,120]
[339380564,1727521850832,-151.0,0.00051238,120]
[339380565,1727521850841,-1725.096911,0.00051295,14]
[339380566,1727521850851,-1725.096911,0.00051295,14]
[339380567,1727521850860,-150.112233,0.000513,15]
[339380568,1727521850870,-150.112233,0.000515,15]
[339380569,1727521850879,-10000.0,0.00051512,120]
[339380570,1727521850888,-151.0,0.00051569,120]
[339380571,1727521850897,-354.261944,0.00051622,2]
[339380572,1727521850907,-326.68441,0.00051622,2]
[339380573,1727521850916,-150.112233,0.000517,10]
[339380574,1727521850925,-11250.0,0.00051786,120]
[339380575,1727521850935,-1725.096911,0.00051897,14]
[339380576,1727521850944,-1725.096911,0.00051897,14]
[339380577,1727521850953,-3657.62897213,0.0005206,120]
[339380578,1727521850963,-151.0,0.00052107,120]
[339380579,1727521850972,-999.0,0.00052181,120]
[339380580,1727521850982,-1725.096911,0.00052391,14]
[339380581,1727521850991,-1725.096911,0.00052391,14]
[339380582,1727521851002,-151.0,0.0005262,120]
[339380583,1727521851012,-1725.096911,0.0005299,14]
[339380584,1727521851021,-1725.096903,0.0005299,14]
[339380585,1727521851030,-162.239887,0.00053,13]
[339380586,1727521851039,-10000.0,0.000531,30]
[339380587,1727521851048,-151.0,0.000531,120]
[339380588,1727521851057,-4999.915333,0.000532,120]
[339380589,1727521851068,-999.0,0.00053277,120]
[339380590,1727521851078,-10000.0,0.000535,120]
[339380591,1727521851087,-150.112233,0.000535,13]
[339380592,1727521851096,-306.0,0.00053699,30]
[339380593,1727521851105,-150.112233,0.00054,14]
[339380594,1727521851115,-529.5332772,0.00054247,30]
[339380595,1727521851124,-999.0,0.00054373,120]
[339380596,1727521851133,-150.112233,0.000545,14]
[339380597,1727521851143,-261.46,0.000546,30]
[339380598,1727521851152,-261.34357675,0.00054694,2]
[339380599,1727521851161,-5000.0,0.0005479,55]
[339380600,1727521851170,-1000.0,0.0005479,30]
[339380601,1727521851179,-500.0,0.00054794,7]
[339380602,1727521851190,-491.01219711,0.00054794,7]
[339380603,1727521851200,-500.0,0.00054794,120]
[339380604,1727521851209,-503.00530112,0.00054794,120]
[339380605,1727521851218,-502.70075199,0.00054794,120]
[339380606,1727521851227,-502.49581367,0.00054794,120]
[339380607,1727521851236,-507.41046318,0.00054794,120]
[339380608,1727521851246,-150.14072806,0.00054794,120]
[339380609,1727521851255,-1985.24,0.00054794,120]
[339380610,1727521851264,-500.0,0.00054794,120]
[339380611,1727521851273,-500.67972516,0.00054794,120]
[339380612,1727521851282,-500.0,0.00054794,120]
[339380613,1727521851291,-500.0,0.00054794,120]
[339380614,1727521851301,-500.0,0.00054794,14]
[339380615,1727521851309,-511.65388291,0.00054794,120]
[339380616,1727521851320,-500.0,0.00054794,120]
[339380617,1727521851330,-500.0,0.00054794,120]
[339380618,1727521851339,-212.20014539,0.00054794,120]
[339380619,1727521851348,-582.43241573,0.00054794,120]
[339380620,1727521851357,-503.48949662,0.00054794,120]
[339380621,1727521851367,-500.0,0.00054794,120]
[339380622,1727521851376,-150.34399251,0.00054794,120]
[339380623,1727521851386,-502.53158594,0.00054794,120]
[339380624,1727521851395,-500.0,0.00054794,120]
[339380625,1727521851405,-500.0,0.00054794,120]
[339380626,1727521851414,-500.0,0.00054794,120]
[339380627,1727521851424,-500.0,0.00054794,120]
[339380628,1727521851434,-500.0,0.00054794,120]
[339380629,1727521851443,-500.0,0.00054794,120]
[339380630,1727521851452,-500.0,0.00054794,120]
[339380631,1727521851462,-1039.12,0.00054794,120]
[339380632,1727521851471,-500.0,0.00054794,120]
[339380633,1727521851480,-500.0,0.00054794,120]
[339380634,1727521851490,-500.0,0.00054794,120]
[339380635,1727521851499,-500.0,0.00054794,120]
[339380636,1727521851508,-500.0,0.00054794,120]
[339380637,1727521851517,-500.0,0.00054794,120]
[339380638,1727521851527,-399.19309904,0.00054794,120]
[339380639,1727521851538,-500.0,0.00054794,120]
[339380640,1727521851548,-500.0,0.00054794,120]
[339380641,1727521851557,-500.0,0.00054794,120]
[339380642,1727521851570,-500.0,0.00054794,120]
[339380643,1727521851579,-500.0,0.00054794,120]
[339380644,1727521851589,-500.0,0.00054794,120]
[339380645,1727521851598,-500.0,0.00054794,120]
[339380646,1727521851608,-500.0,0.00054794,120]
[339380647,1727521851617,-500.0,0.00054794,120]
[339380648,1727521851626,-500.0,0.00054794,120]
[339380649,1727521851636,-511.32259425,0.00054794,120]
[339380650,1727521851646,-600.92067427,0.00054794,120]
[339380651,1727521851655,-500.0,0.00054794,120]
[339380652,1727521851664,-500.0,0.00054794,120]
[339380653,1727521851673,-500.0,0.00054794,120]
[339380654,1727521851682,-500.0,0.00054794,120]
[339380655,1727521851691,-500.0,0.00054794,120]
[339380656,1727521851701,-500.0,0.00054794,120]
[339380657,1727521851710,-1607.19,0.00054794,120]
[339380658,1727521851719,-1607.19,0.00054794,120]
[339380659,1727521851729,-1607.19,0.00054794,120]
[339380660,1727521851738,-1607.19,0.00054794,120]
[339380661,1727521851747,-1607.19,0.00054794,120]
[339380662,1727521851756,-1607.19,0.00054794,120]
[339380663,1727521851766,-1607.19,0.00054794,120]
[339380664,1727521851779,-1607.19,0.00054794,120]
[339380665,1727521851788,-1607.19,0.00054794,120]
[339380666,1727521851797,-1607.19,0.00054794,120]
[339380667,1727521851806,-1607.19,0.00054794,120]
[339380668,1727521851815,-1607.19,0.00054794,120]
[339380669,1727521851825,-1607.19,0.00054794,120]
[339380670,1727521851834,-1607.19,0.00054794,120]
[339380671,1727521851843,-1607.19,0.00054794,120]
[339380672,1727521851852,-1607.19,0.00054794,120]
[339380673,1727521851863,-1607.19,0.00054794,120]
[339380674,1727521851872,-1607.19,0.00054794,120]
[339380675,1727521851881,-1607.19,0.00054794,120]
[339380676,1727521851891,-1607.19,0.00054794,120]
[339380677,1727521851901,-1607.19,0.00054794,120]
[339380678,1727521851911,-1607.19,0.00054794,120]
[339380679,1727521851919,-1607.19,0.00054794,120]
[339380680,1727521851929,-1607.42,0.00054794,120]
[339380681,1727521851938,-500.0,0.00054794,120]
[339380682,1727521851948,-543.85878887,0.00054794,120]
[339380683,1727521851958,-500.0,0.00054794,120]
[339380684,1727521851968,-500.0,0.00054794,120]
[339380685,1727521851978,-500.0,0.00054794,120]
[339380686,1727521851987,-500.0,0.00054794,120]
[339380687,1727521851997,-500.0,0.00054794,120]
[339380688,1727521852007,-500.0,0.00054794,120]
[339380689,1727521852018,-500.0,0.00054794,120]
[339380690,1727521852027,-500.0,0.00054794,120]
[339380691,1727521852038,-506.78,0.00054794,120]
[339380692,1727521852049,-1363.07,0.00054794,120]
[339380693,1727521852058,-500.0,0.00054794,120]
[339380694,1727521852069,-598.286471,0.00054794,120]
[339380695,1727521852078,-500.0,0.00054794,120]
[339380696,1727521852088,-500.0,0.00054794,120]
[339380697,1727521852097,-500.308457,0.00054794,120]
[339380698,1727521852107,-3831.2,0.00054794,120]
[339380699,1727521852116,-385.62202993,0.00054794,120]
[339380700,1727521852125,-306.85138069,0.00054794,120]
[339380701,1727521852134,-500.0,0.00054794,120]
[339380702,1727521852144,-500.0,0.00054794,30]
[339380703,1727521852153,-500.0,0.00054794,120]
[339380704,1727521852162,-591.76,0.00054794,7]
[339380705,1727521852171,-1723.16,0.00054794,120]
[339380706,1727521852181,-500.0,0.00054794,120]
[339380707,1727521852190,-1147.23,0.00054794,120]
[339380708,1727521852199,-4305.71,0.00054794,120]
[339380709,1727521852209,-1552.29,0.00054794,60]
[339380710,1727521852218,-1000.0,0.00054794,120]
[339380711,1727521852227,-500.0,0.00054794,120]
[339380712,1727521852237,-214.26006301,0.00054794,18]
[339380713,1727521852247,-500.0,0.00054794,2]
[339380714,1727521852256,-324.57148651,0.00054794,120]
[339380715,1727521852266,-500.0,0.00054794,21]
[339380716,1727521852275,-500.0,0.00054794,30]
[339380717,1727521852284,-3498.26374988,0.00055,120]
[339380718,1727521852294,-209.2405291,0.00055068,120]
[339380719,1727521852303,-209.2405291,0.00055068,120]
[339380720,1727521852314,-209.2405291,0.00055068,120]
[339380721,1727521852326,-3630.28,0.000552,30]
[339380722,1727521852335,-999.0,0.00055469,120]
[339380723,1727521852345,-166.5715785,0.0005589,120]
[339380724,1727521852428,-213.3694757,0.0005589,120]
[339380725,1727521852438,-350.3,0.00055995,120]
[339380726,1727521852448,-999.0,0.00056565,120]
[339380727,1727521852458,-412.2788661,0.00056712,120]
[339380728,1727521852467,-412.2788661,0.00056712,120]
[339380729,1727521852477,-412.2788661,0.00056712,120]
[339380730,1727521852488,-412.2788661,0.00056712,120]
[339380731,1727521852498,-356.8764999,0.00056712,120]
[339380732,1727521852508,-412.2788661,0.00056712,120]
[339380733,1727521852517,-153.3084247,0.00056712,120]
[339380734,1727521852527,-412.2788661,0.00056712,120]
[339380735,1727521852536,-412.2788661,0.00056712,120]
[339380736,1727521852546,-412.2788661,0.00056712,120]
[339380737,1727521852556,-412.2788661,0.00056712,120]
[339380738,1727521852565,-209.2405291,0.00056712,120]
[339380739,1727521852576,-412.2788661,0.00056712,120]
[339380740,1727521852586,-209.2405291,0.00056712,120]
[339380741,1727521852596,-412.2788661,0.00056712,120]
[339380742,1727521852605,-209.2405291,0.00056712,120]
[339380743,1727521852615,-412.2788661,0.00056712,120]
[339380744,1727521852625,-412.2788661,0.00056712,120]
[339380745,1727521852635,-208.1641084,0.00056712,120]
[339380746,1727521852645,-354.261944,0.00056957,2]
[339380747,1727521852656,-326.68441,0.00056957,2]
[339380748,1727521852666,-500.0,0.00057534,120]
[339380749,1727521852675,-1985.24,0.00057534,120]
[339380750,1727521852685,-468.90154835,0.00057534,120]
[339380751,1727521852695,-439.76,0.00057534,120]
[339380752,1727521852704,-593.82748235,0.00057534,120]
[339380753,1727521852714,-500.0,0.00057534,14]
[339380754,1727521852725,-317.10129445,0.00057534,120]
[339380755,1727521852735,-500.0,0.00057534,120]
[339380756,1727521852746,-556.59,0.00057534,120]
[339380757,1727521852756,-500.0,0.00057534,120]
[339380758,1727521852766,-500.0,0.00057534,120]
[339380759,1727521852780,-500.0,0.00057534,120]
[339380760,1727521852793,-500.0,0.00057534,120]
[339380761,1727521852804,-500.0,0.00057534,120]
[339380762,1727521852814,-494.03878567,0.00057534,120]
[339380763,1727521852824,-500.0,0.00057534,120]
[339380764,1727521852834,-1039.12,0.00057534,120]
[339380765,1727521852843,-500.0,0.00057534,120]
[339380766,1727521852854,-500.0,0.00057534,120]
[339380767,1727521852864,-368.69,0.00057534,120]
[339380768,1727521852875,-500.0,0.00057534,120]
[339380769,1727521852887,-500.0,0.00057534,120]
[339380770,1727521852899,-500.0,0.00057534,120]
[339380771,1727521852908,-500.0,0.00057534,120]
[339380772,1727521852918,-300.0,0.00057534,120]
[339380773,1727521852927,-500.0,0.00057534,120]
[339380774,1727521852938,-500.0,0.00057534,120]
[339380775,1727521852948,-500.0,0.00057534,120]
[339380776,1727521852959,-506.78,0.00057534,120]
[339380777,1727521852968,-1363.07,0.00057534,120]
[339380778,1727521852978,-500.0,0.00057534,120]
[339380779,1727521852987,-3831.2,0.00057534,120]
[339380780,1727521852997,-500.0,0.00057534,120]
[339380781,1727521853007,-500.0,0.00057534,120]
[339380782,1727521853016,-1723.16,0.00057534,120]
[339380783,1727521853025,-500.0,0.00057534,120]
[339380784,1727521853034,-1147.23,0.00057534,120]
[339380785,1727521853043,-4305.71,0.00057534,120]
[339380786,1727521853052,-1552.29,0.00057534,70]
[339380787,1727521853061,-1000.0,0.00057534,120]
[339380788,1727521853072,-500.0,0.00057534,120]
[339380789,1727521853084,-264.03,0.00057534,2]
[339380790,1727521853095,-442.5,0.00057534,30]
[339380791,1727521853105,-999.0,0.00057661,120]
[339380792,1727521853116,-99999.0,0.00058,120]
[339380793,1727521853128,-556.59,0.00058082,120]
[339380794,1727521853139,-150.0,0.00058571,5]
[339380795,1727521853150,-500.0,0.00058571,7]
[339380796,1727521853159,-556.59,0.0005863,120]
[339380797,1727521853169,-999.0,0.00058756,120]
[339380798,1727521853181,-250.0,0.00059119,5]
[339380799,1727521853192,-1000.0,0.00059119,7]
[339380800,1727521853203,-556.59,0.00059178,120]
[339380801,1727521853213,-350.0,0.00059667,5]
[339380802,1727521853222,-556.59,0.00059726,120]
[339380803,1727521853232,-1500.0,0.0005983,7]
[339380804,1727521853243,-999.0,0.00059852,120]
[339380805,1727521853254,-5000.0,0.0006,60]
[339380806,1727521853264,-13877.69689403,0.0006,60]
[339380807,1727521853274,-3498.26374988,0.0006,120]
[339380808,1727521853284,-151.0,0.00060027,120]
[339380809,1727521853294,-250.0,0.00060215,5]
[339380810,1727521853304,-571.72537482,0.00060273,120]
[339380811,1727521853315,-1985.24,0.00060273,120]
[339380812,1727521853326,-211.69,0.00060273,14]
[339380813,1727521853335,-624.79,0.00060273,120]
[339380814,1727521853345,-556.59,0.00060273,120]
[339380815,1727521853357,-500.0,0.00060273,120]
[339380816,1727521853367,-500.0,0.00060273,120]
[339380817,1727521853378,-500.0,0.00060273,120]
[339380818,1727521853389,-500.0,0.00060273,120]
[339380819,1727521853399,-500.0,0.00060273,120]
[339380820,1727521853409,-1039.12,0.00060273,120]
[339380821,1727521853421,-500.0,0.00060273,120]
[339380822,1727521853431,-500.0,0.00060273,120]
[339380823,1727521853442,-609.57330274,0.00060273,120]
[339380824,1727521853453,-500.0,0.00060273,120]
[339380825,1727521853462,-500.0,0.00060273,120]
[339380826,1727521853471,-568.29403104,0.00060273,120]
[339380827,1727521853481,-500.0,0.00060273,120]
[339380828,1727521853491,-500.0,0.00060273,120]
[339380829,1727521853500,-506.78,0.00060273,120]
[339380830,1727521853510,-1363.07,0.00060273,120]
[339380831,1727521853519,-500.0,0.00060273,120]
[339380832,1727521853529,-3831.2,0.00060273,120]
[339380833,1727521853538,-500.0,0.00060273,120]
[339380834,1727521853547,-500.0,0.00060273,120]
[339380835,1727521853557,-1723.16,0.00060273,120]
[339380836,1727521853567,-500.0,0.00060273,120]
[339380837,1727521853577,-1147.23,0.00060273,120]
[339380838,1727521853587,-4305.71,0.00060273,120]
[339380839,1727521853597,-1552.29,0.00060273,80]
[339380840,1727521853607,-447.95474885,0.00060273,120]
[339380841,1727521853617,-500.0,0.00060273,120]
[339380842,1727521853626,-2000.0,0.00060619,7]
[339380843,1727521853635,-556.59,0.00060821,120]
[339380844,1727521853645,-999.0,0.00060948,120]
[339380845,1727521853654,-556.59,0.00061369,120]
[339380846,1727521853663,-556.59,0.00061917,120]
[339380847,1727521853673,-999.0,0.00062044,120]
[339380848,1727521853682,-354.261944,0.00062293,2]
[339380849,1727521853692,-326.68441,0.00062293,2]
[339380850,1727521853702,-556.59,0.00062465,120]
[339380851,1727521853712,-1985.24,0.00063013,120]
[339380852,1727521853721,-556.59,0.00063013,120]
[339380853,1727521853731,-580.42631673,0.00063013,120]
[339380854,1727521853740,-500.0,0.00063013,120]
[339380855,1727521853750,-500.0,0.00063013,120]
[339380856,1727521853760,-500.0,0.00063013,120]
[339380857,1727521853773,-500.0,0.00063013,120]
[339380858,1727521853783,-1039.12,0.00063013,120]
[339380859,1727521853793,-580.11573433,0.00063013,120]
[339380860,1727521853803,-500.0,0.00063013,120]
[339380861,1727521853813,-500.0,0.00063013,120]
[339380862,1727521853826,-500.0,0.00063013,120]
[339380863,1727521853835,-500.0,0.00063013,120]
[339380864,1727521853845,-506.78,0.00063013,120]
[339380865,1727521853856,-1363.07,0.00063013,120]
[339380866,1727521853869,-500.0,0.00063013,120]
[339380867,1727521853879,-3831.2,0.00063013,120]
[339380868,1727521853889,-647.75639859,0.00063013,120]
[339380869,1727521853898,-565.96999999,0.00063013,120]
[339380870,1727521853908,-1723.16,0.00063013,120]
[339380871,1727521853921,-500.0,0.00063013,120]
[339380872,1727521853932,-1147.23,0.00063013,120]
[339380873,1727521853941,-4305.71,0.00063013,120]
[339380874,1727521853951,-1552.29,0.00063013,90]
[339380875,1727521853962,-500.0,0.00063013,120]
[339380876,1727521853972,-3630.28,0.000631,30]
[339380877,1727521853984,-999.0,0.0006314,120]
[339380878,1727521853995,-342.066441,0.00063468,30]
[339380879,1727521854007,-556.59,0.00063561,120]
[339380880,1727521854018,-556.59,0.00064109,120]
[339380881,1727521854029,-661.89,0.00064236,120]
[339380882,1727521854039,-875.30019796,0.000644,120]
[339380883,1727521854048,-5000.0,0.000645,65]
[339380884,1727521854059,-5000.0,0.000645,120]
[339380885,1727521854071,-5000.0,0.000645,120]
[339380886,1727521854081,-5020.54379381,0.000645,120]
[339380887,1727521854090,-556.59,0.00064657,120]
[339380888,1727521854099,-1095420.44820128,0.00065,30]
[339380889,1727521854108,-3498.26374988,0.00065,120]
[339380890,1727521854117,-556.59,0.00065205,120]
[339380891,1727521854125,-1985.24,0.00065753,120]
[339380892,1727521854135,-556.59,0.00065753,120]
[339380893,1727521854144,-500.0,0.00065753,120]
[339380894,1727521854154,-491.53323995,0.00065753,120]
[339380895,1727521854165,-200.24269121,0.00065753,120]
[339380896,1727521854175,-500.0,0.00065753,120]
[339380897,1727521854185,-1039.12,0.00065753,120]
[339380898,1727521854197,-500.0,0.00065753,120]
[339380899,1727521854208,-500.0,0.00065753,120]
[339380900,1727521854218,-500.0,0.00065753,120]
[339380901,1727521854229,-500.0,0.00065753,120]
[339380902,1727521854239,-157.8,0.00065753,120]
[339380903,1727521854249,-506.78,0.00065753,120]
[339380904,1727521854258,-1363.07,0.00065753,120]
[339380905,1727521854268,-208.07721957,0.00065753,120]
[339380906,1727521854277,-3831.2,0.00065753,120]
[339380907,1727521854286,-1723.16,0.00065753,120]
[339380908,1727521854296,-500.0,0.00065753,120]
[339380909,1727521854307,-1147.23,0.00065753,120]
[339380910,1727521854318,-4305.71,0.00065753,120]
[339380911,1727521854329,-1552.29,0.00065753,100]
[339380912,1727521854340,-500.0,0.00065753,120]
[339380913,1727521854352,-525.0,0.00066099,120]
[339380914,1727521854362,-150.0,0.00066099,120]
[339380915,1727521854372,-1217.0,0.00066099,120]
[339380916,1727521854381,-556.59,0.00066301,120]
[339380917,1727521854391,-556.59,0.00066849,120]
[339380918,1727521854401,-556.59,0.00067397,120]
[339380919,1727521854410,-354.261944,0.00067628,2]
[339380920,1727521854419,-326.68441,0.00067628,2]
[339380921,1727521854429,-556.59,0.00067945,120]
[339380922,1727521854439,-350.3,0.00068096,120]
[339380923,1727521854448,-1985.24,0.00068493,120]
[339380924,1727521854458,-556.59,0.00068493,120]
[339380925,1727521854468,-500.0,0.00068493,120]
[339380926,1727521854478,-500.0,0.00068493,120]
[339380927,1727521854487,-1039.12,0.00068493,120]
[339380928,1727521854498,-500.0,0.00068493,120]
[339380929,1727521854508,-150.0,0.00068493,120]
[339380930,1727521854518,-500.0,0.00068493,120]
[339380931,1727521854530,-500.0,0.00068493,120]
[339380932,1727521854541,-500.0,0.00068493,120]